Workbook

Sheet deals
A1: Исходные данные | D1: 1. Бекинг с коэффициентом | G1: Вероятности заносов
A2: Лимит | B2: 5 | D2: Бездисперсионный доход игрока | E2: =B17*B5*B2*(B19-1) -> 136.2625 | H2: %попасть | I2: %выиграть
A3: Рейк | B3: 0.07 | D3: Дисперсионный доход игрока | E3: =(1-B17)*B12 -> 0 | G3: топ1 джекпот | H3: =(1-(1-3/1000000)^B5) -> 0.002968589458 | I3: =H3*$B$8 -> 0.001068692205
A4: Рейкбек | B4: 0.5 | D4: Суммарный ожидаемый доход игрока | E4: =SUM(E2:E3) -> 136.2625 | G4: топ2 джекпот | H4: =(1-(1-50/1000000)^B5) -> 0.04834360484 | I4: =H4*$B$8 -> 0.01740369774
A5: Дистанция в месяц | B5: 991 | D5: Доход школы за бекинг и обучение | E5: =(B18-B19)*B2*B5*B17 -> 58.9645 | G5: топ3 джекпот | H5: =(1-(1-100/1000000)^B5) -> 0.09435234951 | I5: 0.03396684582
A6: Оценка ЧипЕВ | B6: 40 | D6: Распределение ожидания игрок-школа:
A7: Результаты | D7: Игрок: | E7: =(E2+E3)/B12 -> 0.6979695431
A8: ИТМ% | B8: =(500+B6)/1500 -> 0.36 | D8: Школа: | E8: =E5/B12 -> 0.3020304569 | F8: =E8/E7 -> 0.4327272727
A9: РБ (на игру) | B9: =B4*B3*B2 -> 0.175 | D9: 2. Бекинг с откатом
A10: Профит за игру | B10: =B2*((1-B3)*B6/500-B3)+B9 -> 0.197 | D10: Бездисперсионный доход игрока | E10: 0
A11: EV ROI, % | B11: =B10/B2 -> 0.0394 | D11: Ожидание игрока | E11: =(1-B17)*B12+B17*B12*(1-B21) -> 136.2625
A12: Ожидание за месяц | B12: =B5*B10 -> 195.227 | D12: … без топ1 множителя | E12: =E11-(B12-B14)*E11/B12 -> 91.44112944
A13: … из него, рейкбек | B13: =B9*B5 -> 173.425 | D13: … без топ3 множителей | E13: =E11-(B12-B15)*E11/B12 -> 61.56021574
A14: … без топ1 множителя | B14: =B12-(B5*B2*B8/1000000)*(3*12000) -> 131.0102 | D14: Доход школы за бекинг и обучение | E14: =B12-E11 -> 58.9645
A15: … без топ3 множителей | B15: =B12-(B5*B2*B8/1000000)*(100*120+50*240+3*12000) -> 88.199 | D15: Распределение ожидания игрок-школа:
A16: Детали сделки | D16: Игрок: | E16: =E11/B12 -> 0.6979695431
A17: % пакета в продаже | B17: 1 | D17: Школа: | E17: =(B12-E11)/B12 -> 0.3020304569 | F17: =E17/E16 -> 0.4327272727
A18: Макс. коэффициент на бирже | B18: =1+B11 -> 1.0394 | D18: 3. Бекинг с откатом и дележкой с пулом игроков
A19: …из него, коэффициент игрока | B19: 1.0275 | D19: Фактический EV игрока в пуле | E19: =B12*B17 -> 195.227
D20: EV пула | E20: 40000
A21: Или, откат школы от %в продаже | B21: =1-(B19-1)/(B18-1) -> 0.3020304569 | D21: Профит пула | E21: 40000
D22: Комиссия школы за обслуживание пула | E22: 0.02
A23: EV бекера | B23: =-(B18-1-B11)*B5*B2 -> -5.501155087e-13 | D23: Профит пула к дележке | E23: =E21*(1-E22) -> 39200
A24: Сумма покупки | B24: =70*15 -> 1050 | D24: Доля игрока от профита пула | E24: =E19/E20 -> 0.004880675
A25: ROI бекера | B25: =B23/B24 -> -5.239195321e-16 | D25: Профит игрока в пуле | E25: =E24*E21 -> 195.227
D26: Общий профит игрока после отката | E26: =(1-B17)*B12+E25*(1-B21) -> 136.2625
D27: Откат школы | E27: =E25*B21 -> 58.9645
D28: Игрок: | E28: =E26/B12 -> 0.6979695431
D29: Школа: | E29: =E27/B12+E22 -> 0.3220304569 | F29: =E29/E28 -> 0.4613818182
